fUSD/lending_fUSD_20260621
["ID","MTS","AMOUNT","RATE_DAILY","PERIOD"]
[425949035,1782042655000,-823.97,0.00027671,2]
[425949036,1782042655000,-1664.89,0.00027671,2]
[425949038,1782042655000,-500.0,0.00027671,2]
[425949033,1782042655000,-613.8540607,0.00027671,2]
[425949047,1782042655000,-500.0,0.00027671,2]
[425949034,1782042655000,-500.0,0.00027671,2]
[425949031,1782042655000,-500.0,0.00027671,2]
[425949030,1782042655000,-500.0,0.00027671,2]
[425949037,1782042655000,-500.0,0.00027671,2]
[425949041,1782042655000,-500.0,0.00027671,2]
[425949043,1782042655000,-644.07,0.00027671,2]
[425949045,1782042655000,-500.0,0.00027671,2]
[425949052,1782042655000,-500.0,0.00027671,2]
[425949050,1782042655000,-578.17229649,0.00027671,2]
[425949042,1782042655000,-500.0,0.00027671,2]
[425949046,1782042655000,-500.0,0.00027671,2]
[425949049,1782042655000,-500.0,0.00027671,2]
[425949044,1782042655000,-500.0,0.00027671,2]
[425949051,1782042655000,-500.0,0.00027671,2]
[425949032,1782042655000,-500.0,0.00027671,2]
[425949090,1782042655000,-500.0,0.00027671,2]
[425949026,1782042655000,-500.0,0.00027671,2]
[425949087,1782042655000,-515.17702085,0.00027671,2]
[425949125,1782042655000,-500.0,0.00027671,2]
[425949114,1782042655000,-500.0,0.00027671,2]
[425949120,1782042655000,-661.2,0.00027671,2]
[425949116,1782042655000,-500.0,0.00027671,2]
[425949118,1782042655000,-605.84028048,0.00027671,2]
[425949121,1782042655000,-528.51,0.00027671,2]
[425949122,1782042655000,-500.0,0.00027671,2]
[425949115,1782042655000,-506.46,0.00027671,2]
[425949127,1782042655000,-606.45527132,0.00027671,2]
[425949126,1782042655000,-500.0,0.00027671,2]
[425949128,1782042655000,-500.0,0.00027671,2]
[425949137,1782042655000,-500.0,0.00027671,2]
[425949132,1782042655000,-500.0,0.00027671,2]
[425949117,1782042655000,-500.0,0.00027671,2]
[425949133,1782042655000,-500.0,0.00027671,2]
[425949136,1782042655000,-500.0,0.00027671,2]
[425949139,1782042655000,-500.0,0.00027671,2]
[425949135,1782042655000,-500.0,0.00027671,2]
[425949131,1782042655000,-500.0,0.00027671,2]
[425949138,1782042655000,-500.0,0.00027671,2]
[425949134,1782042655000,-155.82893339,0.00027671,2]
[425949130,1782042655000,-500.0,0.00027671,2]
[425949140,1782042655000,-500.0,0.00027671,2]
[425949141,1782042655000,-500.0,0.00027671,2]
[425949144,1782042655000,-512.19,0.00027671,2]
[425949142,1782042655000,-500.0,0.00027671,2]
[425949143,1782042655000,-717.28,0.00027671,2]
[425949085,1782042655000,-500.0,0.00027671,2]
[425949129,1782042655000,-1240.33,0.00027671,2]
[425949113,1782042655000,-542.68578693,0.00027671,2]
[425949145,1782042655000,-500.0,0.00027671,2]
[425949124,1782042655000,-500.0,0.00027671,2]
[425949123,1782042655000,-500.0,0.00027671,2]
[425949082,1782042655000,-500.0,0.00027671,2]
[425949086,1782042655000,-500.0,0.00027671,2]
[425949084,1782042655000,-500.0,0.00027671,2]
[425949088,1782042655000,-500.0,0.00027671,2]
[425949091,1782042655000,-196.08546417,0.00027671,2]
[425949096,1782042655000,-500.0,0.00027671,2]
[425949095,1782042655000,-500.0,0.00027671,2]
[425949093,1782042655000,-500.0,0.00027671,2]
[425949094,1782042655000,-500.0,0.00027671,2]
[425949102,1782042655000,-500.0,0.00027671,2]
[425949099,1782042655000,-500.0,0.00027671,2]
[425949100,1782042655000,-500.0,0.00027671,2]
[425949097,1782042655000,-523.31,0.00027671,2]
[425949083,1782042655000,-544.76256334,0.00027671,2]
[425949098,1782042655000,-500.0,0.00027671,2]
[425949092,1782042655000,-500.0,0.00027671,2]
[425949108,1782042655000,-629.68,0.00027671,2]
[425949112,1782042655000,-500.0,0.00027671,2]
[425949111,1782042655000,-500.0,0.00027671,2]
[425949105,1782042655000,-500.0,0.00027671,2]
[425949110,1782042655000,-500.0,0.00027671,2]
[425949107,1782042655000,-1317.73,0.00027671,2]
[425949101,1782042655000,-500.0,0.00027671,2]
[425949109,1782042655000,-500.0,0.00027671,2]
[425949104,1782042655000,-500.0,0.00027671,2]
[425949119,1782042655000,-500.0,0.00027671,2]
[425949103,1782042655000,-500.0,0.00027671,2]
[425949106,1782042655000,-500.0,0.00027671,2]
[425949181,1782042656000,-500.0,0.00027671,2]
[425949175,1782042656000,-500.0,0.00027671,2]
[425949173,1782042656000,-944.4,0.00027671,2]
[425949179,1782042656000,-2816.73,0.00027671,2]
[425949178,1782042656000,-500.0,0.00027671,2]
[425949180,1782042656000,-500.0,0.00027671,2]
[425949182,1782042656000,-500.0,0.00027671,2]
[425949183,1782042656000,-500.0,0.00027671,2]
[425949184,1782042656000,-538.09515493,0.00027671,2]
[425949170,1782042656000,-500.0,0.00027671,2]
[425949174,1782042656000,-500.0,0.00027671,2]
[425949190,1782042656000,-500.0,0.00027671,2]
[425949185,1782042656000,-500.0,0.00027671,2]
[425949188,1782042656000,-500.0,0.00027671,2]
[425949186,1782042656000,-500.0,0.00027671,2]
[425949200,1782042656000,-520.1,0.00027671,2]
[425949189,1782042656000,-500.0,0.00027671,2]
[425949192,1782042656000,-500.0,0.00027671,2]
[425949195,1782042656000,-500.0,0.00027671,2]
[425949193,1782042656000,-500.0,0.00027671,2]
[425949191,1782042656000,-500.0,0.00027671,2]
[425949176,1782042656000,-500.0,0.00027671,2]
[425949196,1782042656000,-614.69,0.00027671,2]
[425949187,1782042656000,-500.0,0.00027671,2]
[425949171,1782042656000,-533.74,0.00027671,2]
[425949158,1782042656000,-1485.29,0.00027671,2]
[425949172,1782042656000,-500.0,0.00027671,2]
[425949194,1782042656000,-1574.38,0.00027671,2]
[425949152,1782042656000,-1372.89,0.00027671,2]
[425949151,1782042656000,-500.0,0.00027671,2]
[425949147,1782042656000,-500.0,0.00027671,2]
[425949148,1782042656000,-500.0,0.00027671,2]
[425949153,1782042656000,-500.0,0.00027671,2]
[425949150,1782042656000,-1014.39,0.00027671,2]
[425949149,1782042656000,-500.0,0.00027671,2]
[425949146,1782042656000,-500.0,0.00027671,2]
[425949154,1782042656000,-500.0,0.00027671,2]
[425949155,1782042656000,-32804.885579,0.00027671,2]
[425949169,1782042656000,-500.0,0.00027671,2]
[425949162,1782042656000,-500.0,0.00027671,2]
[425949159,1782042656000,-500.0,0.00027671,2]
[425949156,1782042656000,-996.79,0.00027671,2]
[425949165,1782042656000,-835.09,0.00027671,2]
[425949157,1782042656000,-500.0,0.00027671,2]
[425949161,1782042656000,-500.0,0.00027671,2]
[425949164,1782042656000,-500.0,0.00027671,2]
[425949160,1782042656000,-500.0,0.00027671,2]
[425949167,1782042656000,-500.0,0.00027671,2]
[425949177,1782042656000,-500.0,0.00027671,2]
[425949168,1782042656000,-500.0,0.00027671,2]
[425949166,1782042656000,-909.56,0.00027671,2]
[425949163,1782042656000,-529.79,0.00027671,2]
[425949199,1782042656000,-529.97,0.00027671,2]
[425949198,1782042656000,-500.0,0.00027671,2]
[425949197,1782042656000,-500.0,0.00027671,2]
[425949230,1782042656000,-500.0,0.00027671,2]
[425949231,1782042656000,-500.0,0.00027671,2]
[425949233,1782042656000,-4177.04,0.00027671,2]
[425949232,1782042656000,-1956.1,0.00027671,2]
[425949229,1782042656000,-670.9,0.00027671,2]
[425949236,1782042656000,-500.0,0.00027671,2]
[425949239,1782042656000,-500.0,0.00027671,2]
[425949234,1782042656000,-500.0,0.00027671,2]
[425949235,1782042656000,-500.0,0.00027671,2]
[425949237,1782042656000,-500.0,0.00027671,2]
[425949238,1782042656000,-500.0,0.00027671,2]
[425949224,1782042656000,-500.0,0.00027671,2]
[425949241,1782042656000,-500.0,0.00027671,2]
[425949246,1782042656000,-1203.84,0.00027671,2]
[425949248,1782042656000,-936.18,0.00027671,2]
[425949243,1782042656000,-643.81,0.00027671,2]
[425949245,1782042656000,-488.21093609,0.00027671,2]
[425949250,1782042656000,-1105.75,0.00027671,2]
[425949244,1782042656000,-500.0,0.00027671,2]
[425949249,1782042656000,-500.0,0.00027671,2]
[425949247,1782042656000,-4138.94,0.00027671,2]
[425949252,1782042656000,-500.0,0.00027671,2]
[425949253,1782042656000,-4234.06,0.00027671,2]
[425949251,1782042656000,-1505.18,0.00027671,2]
[425949242,1782042656000,-500.0,0.00027671,2]
[425949227,1782042656000,-500.0,0.00027671,2]
[425949240,1782042656000,-500.0,0.00027671,2]
[425949222,1782042656000,-500.0,0.00027671,2]
[425949219,1782042656000,-500.0,0.00027671,2]
[425949203,1782042656000,-538.04,0.00027671,2]
[425949210,1782042656000,-500.0,0.00027671,2]
[425949205,1782042656000,-500.0,0.00027671,2]
[425949201,1782042656000,-500.0,0.00027671,2]
[425949204,1782042656000,-507.55579273,0.00027671,2]
[425949212,1782042656000,-4283.71,0.00027671,2]
[425949207,1782042656000,-500.0,0.00027671,2]
[425949209,1782042656000,-640.9197083,0.00027671,2]
[425949211,1782042656000,-500.0,0.00027671,2]
[425949206,1782042656000,-500.0,0.00027671,2]
[425949208,1782042656000,-500.0,0.00027671,2]
[425949202,1782042656000,-500.0,0.00027671,2]
[425949214,1782042656000,-500.0,0.00027671,2]
[425949225,1782042656000,-500.0,0.00027671,2]
[425949228,1782042656000,-500.0,0.00027671,2]
[425949226,1782042656000,-500.0,0.00027671,2]
[425949223,1782042656000,-500.0,0.00027671,2]
[425949220,1782042656000,-1067.51,0.00027671,2]
[425949221,1782042656000,-500.0,0.00027671,2]
[425949218,1782042656000,-500.0,0.00027671,2]
[425949213,1782042656000,-1267.73,0.00027671,2]
[425949215,1782042656000,-500.0,0.00027671,2]
[425949216,1782042656000,-500.0,0.00027671,2]
[425949217,1782042656000,-1452.97,0.00027671,2]
[425949292,1782042657000,-500.0,0.00027671,2]
[425949291,1782042657000,-500.0,0.00027671,2]
[425949294,1782042657000,-151.0,0.00027671,7]
[425949293,1782042657000,-500.0,0.00027671,2]
[425949295,1782042657000,-619.54,0.00027671,2]
[425949290,1782042657000,-500.0,0.00027671,2]
[425949288,1782042657000,-520.13537363,0.00027671,2]
[425949299,1782042657000,-9051.47,0.00027671,2]
[425949289,1782042657000,-500.0,0.00027671,2]
[425949285,1782042657000,-500.0,0.00027671,2]
[425949279,1782042657000,-500.0,0.00027671,2]
[425949300,1782042657000,-576.5,0.00027671,2]
[425949297,1782042657000,-500.0,0.00027671,2]
[425949307,1782042657000,-500.0,0.00027671,2]
[425949296,1782042657000,-500.0,0.00027671,2]
[425949302,1782042657000,-500.0,0.00027671,2]
[425949310,1782042657000,-6082.93,0.00027671,2]
[425949311,1782042657000,-258.69455579,0.00027671,2]
[425949303,1782042657000,-500.0,0.00027671,2]
[425949306,1782042657000,-586.27,0.00027671,2]
[425949309,1782042657000,-797.89,0.00027671,2]
[425949301,1782042657000,-2259.71,0.00027671,2]
[425949304,1782042657000,-3663.8,0.00027671,2]
[425949308,1782042657000,-500.0,0.00027671,2]
[425949312,1782042657000,-500.0,0.00027671,2]
[425949314,1782042657000,-500.0,0.00027671,2]
[425949284,1782042657000,-500.0,0.00027671,2]
[425949298,1782042657000,-554.38,0.00027671,2]
[425949283,1782042657000,-500.0,0.00027671,2]
[425949260,1782042657000,-500.0,0.00027671,2]
[425949278,1782042657000,-500.0,0.00027671,2]
[425949262,1782042657000,-500.0,0.00027671,2]
[425949256,1782042657000,-500.0,0.00027671,2]
[425949261,1782042657000,-3754.21,0.00027671,2]
[425949258,1782042657000,-500.0,0.00027671,2]
[425949313,1782042657000,-582.33319464,0.00027671,2]
[425949257,1782042657000,-741.98,0.00027671,2]
[425949255,1782042657000,-500.0,0.00027671,2]
[425949254,1782042657000,-663.72,0.00027671,2]
[425949259,1782042657000,-583.38,0.00027671,2]
[425949264,1782042657000,-554.94,0.00027671,2]
[425949272,1782042657000,-500.0,0.00027671,2]
[425949273,1782042657000,-500.0,0.00027671,2]
[425949265,1782042657000,-500.0,0.00027671,2]
[425949280,1782042657000,-500.0,0.00027671,2]
[425949268,1782042657000,-1074.6,0.00027671,2]
[425949267,1782042657000,-500.0,0.00027671,2]
[425949270,1782042657000,-500.0,0.00027671,2]
[425949266,1782042657000,-500.0,0.00027671,2]
[425949271,1782042657000,-500.0,0.00027671,2]
[425949269,1782042657000,-6119.57,0.00027671,2]
[425949275,1782042657000,-500.0,0.00027671,2]
[425949274,1782042657000,-500.0,0.00027671,2]
[425949276,1782042657000,-500.0,0.00027671,2]
[425949282,1782042657000,-5414.02,0.00027671,2]
[425949277,1782042657000,-4223.82,0.00027671,2]
[425949287,1782042657000,-500.0,0.00027671,2]
[425949281,1782042657000,-500.0,0.00027671,2]
[425949286,1782042657000,-500.0,0.00027671,2]
[425949263,1782042657000,-500.0,0.00027671,2]
[425949316,1782042657000,-691.32,0.00027671,2]
[425949305,1782042657000,-500.0,0.00027671,2]
[425949317,1782042657000,-3536.55,0.00027671,2]
[425949358,1782042657000,-500.0,0.00027671,2]
[425949351,1782042657000,-500.0,0.00027671,2]
[425949350,1782042657000,-500.0,0.00027671,2]
[425949360,1782042657000,-500.0,0.00027671,2]
[425949352,1782042657000,-500.0,0.00027671,2]
[425949353,1782042657000,-500.0,0.00027671,2]
[425949359,1782042657000,-2183.7,0.00027671,2]
[425949355,1782042657000,-500.0,0.00027671,2]
[425949357,1782042657000,-500.0,0.00027671,2]
[425949354,1782042657000,-500.0,0.00027671,2]
[425949356,1782042657000,-500.0,0.00027671,2]
[425949362,1782042657000,-500.0,0.00027671,2]
[425949361,1782042657000,-6102.89,0.00027671,2]
[425949348,1782042657000,-347.43657631,0.00027671,2]
[425949374,1782042657000,-1007.37,0.00027671,2]
[425949365,1782042657000,-1045.79,0.00027671,2]
[425949373,1782042657000,-639.45,0.00027671,2]
[425949366,1782042657000,-500.0,0.00027671,2]
[425949363,1782042657000,-500.0,0.00027671,2]
[425949364,1782042657000,-500.0,0.00027671,2]
[425949367,1782042657000,-2562.49,0.00027671,2]
[425949371,1782042657000,-500.0,0.00027671,2]
[425949370,1782042657000,-500.0,0.00027671,2]
[425949368,1782042657000,-500.0,0.00027671,2]
[425949369,1782042657000,-500.0,0.00027671,2]
[425949375,1782042657000,-500.0,0.00027671,2]
[425949318,1782042657000,-500.0,0.00027671,2]
[425949376,1782042657000,-1343.23,0.00027671,2]
[425949372,1782042657000,-500.0,0.00027671,2]
[425949347,1782042657000,-500.0,0.00027671,2]
[425949377,1782042657000,-535.43,0.00027671,2]
[425949344,1782042657000,-500.0,0.00027671,2]
[425949349,1782042657000,-500.0,0.00027671,2]
[425949320,1782042657000,-1039.45,0.00027671,2]
[425949319,1782042657000,-500.0,0.00027671,2]
[425949315,1782042657000,-500.0,0.00027671,2]
[425949321,1782042657000,-1741.07,0.00027671,2]
[425949323,1782042657000,-500.0,0.00027671,2]
[425949327,1782042657000,-500.0,0.00027671,2]
[425949326,1782042657000,-500.0,0.00027671,2]
[425949324,1782042657000,-643.32,0.00027671,2]
[425949325,1782042657000,-500.0,0.00027671,2]
[425949328,1782042657000,-500.0,0.00027671,2]
[425949332,1782042657000,-500.0,0.00027671,2]
[425949331,1782042657000,-500.0,0.00027671,2]
[425949329,1782042657000,-500.0,0.00027671,2]
[425949322,1782042657000,-500.0,0.00027671,2]
[425949333,1782042657000,-500.0,0.00027671,2]
[425949330,1782042657000,-318.75116334,0.00027671,2]
[425949343,1782042657000,-500.0,0.00027671,2]
[425949342,1782042657000,-779.95,0.00027671,2]
[425949340,1782042657000,-500.0,0.00027671,2]
[425949339,1782042657000,-500.0,0.00027671,2]
[425949338,1782042657000,-560.51,0.00027671,2]
[425949345,1782042657000,-500.0,0.00027671,2]
[425949341,1782042657000,-635.33342118,0.00027671,2]
[425949335,1782042657000,-500.0,0.00027671,2]
[425949346,1782042657000,-500.0,0.00027671,2]
[425949336,1782042657000,-500.0,0.00027671,2]
[425949334,1782042657000,-500.0,0.00027671,2]
[425949337,1782042657000,-500.0,0.00027671,2]
[425949417,1782042658000,-500.0,0.00027671,2]
[425949418,1782042658000,-500.0,0.00027671,2]
[425949419,1782042658000,-500.0,0.00027671,2]
[425949415,1782042658000,-344.5994719,0.00027671,2]
[425949424,1782042658000,-500.0,0.00027671,2]
[425949414,1782042658000,-4282.25,0.00027671,2]
[425949409,1782042658000,-719.64,0.00027671,2]
[425949408,1782042658000,-5262.06,0.00027671,2]
[425949407,1782042658000,-500.0,0.00027671,2]
[425949416,1782042658000,-500.0,0.00027671,2]
[425949413,1782042658000,-500.0,0.00027671,2]
[425949406,1782042658000,-4860.35,0.00027671,2]
[425949427,1782042658000,-574.64,0.00027671,2]
[425949420,1782042658000,-4526.61,0.00027671,2]
[425949422,1782042658000,-1064.87,0.00027671,2]
[425949423,1782042658000,-500.0,0.00027671,2]
[425949425,1782042658000,-500.0,0.00027671,2]
[425949428,1782042658000,-226.47610506,0.00027671,2]
[425949429,1782042658000,-500.0,0.00027671,2]
[425949426,1782042658000,-500.0,0.00027671,2]
[425949435,1782042658000,-500.0,0.00027671,2]
[425949432,1782042658000,-515.74,0.00027671,2]
[425949431,1782042658000,-500.0,0.00027671,2]
[425949430,1782042658000,-5276.66,0.00027671,2]
[425949434,1782042658000,-500.0,0.00027671,2]
[425949403,1782042658000,-500.0,0.00027671,2]
[425949421,1782042658000,-500.0,0.00027671,2]
[425949401,1782042658000,-500.0,0.00027671,2]
[425949391,1782042658000,-500.0,0.00027671,2]
[425949410,1782042658000,-500.0,0.00027671,2]
[425949379,1782042658000,-5243.54,0.00027671,2]
[425949381,1782042658000,-500.0,0.00027671,2]
[425949378,1782042658000,-500.0,0.00027671,2]
[425949380,1782042658000,-551.8,0.00027671,2]
[425949386,1782042658000,-500.0,0.00027671,2]
[425949384,1782042658000,-4255.92,0.00027671,2]
[425949383,1782042658000,-500.0,0.00027671,2]
[425949387,1782042658000,-500.0,0.00027671,2]
[425949385,1782042658000,-500.0,0.00027671,2]
[425949382,1782042658000,-500.0,0.00027671,2]
[425949389,1782042658000,-637.65,0.00027671,2]
[425949388,1782042658000,-500.0,0.00027671,2]
[425949405,1782042658000,-500.0,0.00027671,2]
[425949390,1782042658000,-500.0,0.00027671,2]
[425949393,1782042658000,-8765.19,0.00027671,2]
[425949394,1782042658000,-2815.05,0.00027671,2]
[425949395,1782042658000,-500.0,0.00027671,2]
[425949396,1782042658000,-4969.53,0.00027671,2]
[425949397,1782042658000,-500.0,0.00027671,2]
[425949398,1782042658000,-768.97,0.00027671,2]
[425949404,1782042658000,-10005.09,0.00027671,2]
[425949400,1782042658000,-500.0,0.00027671,2]
[425949399,1782042658000,-500.0,0.00027671,2]
[425949402,1782042658000,-500.0,0.00027671,2]
[425949412,1782042658000,-500.0,0.00027671,2]
[425949411,1782042658000,-6716.5,0.00027671,2]
[425949392,1782042658000,-1490.2,0.00027671,2]
[425949438,1782042658000,-1436.960783,0.00027671,7]
[425949436,1782042658000,-500.0,0.00027671,2]
[425949433,1782042658000,-1436.960783,0.00027671,7]
[425949469,1782042658000,-573.05,0.00027671,2]
[425949477,1782042658000,-500.0,0.00027671,2]
[425949476,1782042658000,-500.0,0.00027671,2]
[425949471,1782042658000,-500.0,0.00027671,2]
[425949473,1782042658000,-500.0,0.00027671,2]
[425949474,1782042658000,-604.46,0.00027671,2]
[425949470,1782042658000,-1000.0,0.00027671,2]
[425949472,1782042658000,-1355.35,0.00027671,2]
[425949480,1782042658000,-500.0,0.00027671,2]
[425949478,1782042658000,-1476.4,0.00027671,2]
[425949483,1782042658000,-9014.62,0.00027671,2]
[425949486,1782042658000,-500.0,0.00027671,2]
[425949468,1782042658000,-500.0,0.00027671,2]
[425949485,1782042658000,-500.0,0.00027671,2]
[425949479,1782042658000,-500.0,0.00027671,2]
[425949482,1782042658000,-500.0,0.00027671,2]
[425949487,1782042658000,-500.0,0.00027671,2]
[425949489,1782042658000,-500.0,0.00027671,2]
[425949493,1782042658000,-569.43,0.00027671,2]
[425949488,1782042658000,-500.0,0.00027671,2]
[425949492,1782042658000,-796.21,0.00027671,2]
[425949490,1782042658000,-872.32,0.00027671,2]
[425949491,1782042658000,-500.0,0.00027671,2]
[425949494,1782042658000,-8519.32,0.00027671,2]
[425949495,1782042658000,-500.0,0.00027671,2]
[425949437,1782042658000,-1436.960783,0.00027671,7]
[425949484,1782042658000,-500.0,0.00027671,2]
[425949466,1782042658000,-500.0,0.00027671,2]
[425949481,1782042658000,-500.0,0.00027671,2]
[425949467,1782042658000,-1605.98,0.00027671,2]
[425949475,1782042658000,-500.0,0.00027671,2]
[425949451,1782042658000,-500.0,0.00027671,2]
[425949450,1782042658000,-582.57,0.00027671,2]
[425949452,1782042658000,-500.0,0.00027671,2]
[425949439,1782042658000,-273.19220741,0.00027671,2]
[425949445,1782042658000,-4721.85,0.00027671,2]
[425949443,1782042658000,-1436.960783,0.00027671,7]
[425949441,1782042658000,-500.0,0.00027671,2]
[425949447,1782042658000,-503.69,0.00027671,2]
[425949442,1782042658000,-500.0,0.00027671,2]
[425949446,1782042658000,-506.81,0.00027671,2]
[425949444,1782042658000,-859.51,0.00027671,2]
[425949449,1782042658000,-3659.51,0.00027671,2]
[425949448,1782042658000,-500.0,0.00027671,2]
[425949440,1782042658000,-500.0,0.00027671,2]
[425949464,1782042658000,-500.0,0.00027671,2]
[425949453,1782042658000,-500.0,0.00027671,2]
[425949463,1782042658000,-500.0,0.00027671,2]
[425949462,1782042658000,-551.78,0.00027671,2]
[425949461,1782042658000,-500.0,0.00027671,2]
[425949459,1782042658000,-608.75,0.00027671,2]
[425949454,1782042658000,-500.0,0.00027671,2]
[425949460,1782042658000,-500.0,0.00027671,2]
[425949465,1782042658000,-242.65716228,0.00027671,2]
[425949455,1782042658000,-151.0,0.00027671,7]
[425949456,1782042658000,-500.0,0.00027671,2]
[425949457,1782042658000,-4874.19,0.00027671,2]
[425949458,1782042658000,-500.0,0.00027671,2]
[425949534,1782042659000,-500.0,0.00027671,2]
[425949533,1782042659000,-660.32,0.00027671,2]
[425949532,1782042659000,-151.0,0.00027671,7]
[425949529,1782042659000,-6802.2,0.00027671,2]
[425949531,1782042659000,-500.0,0.00027671,2]
[425949518,1782042659000,-5803.51,0.00027671,2]
[425949540,1782042659000,-500.0,0.00027671,2]
[425949530,1782042659000,-500.0,0.00027671,2]
[425949521,1782042659000,-500.0,0.00027671,2]
[425949526,1782042659000,-5549.57,0.00027671,2]
[425949539,1782042659000,-5148.55,0.00027671,2]
[425949541,1782042659000,-623.68,0.00027671,2]
[425949537,1782042659000,-6381.5,0.00027671,2]
[425949548,1782042659000,-3481.99,0.00027671,2]
[425949536,1782042659000,-9362.85,0.00027671,2]
[425949535,1782042659000,-500.0,0.00027671,2]
[425949542,1782042659000,-828.79,0.00027671,2]
[425949543,1782042659000,-300.0,0.00027671,2]
[425949546,1782042659000,-10187.27,0.00027671,2]
[425949549,1782042659000,-500.0,0.00027671,2]
[425949547,1782042659000,-946.6,0.00027671,2]
[425949544,1782042659000,-500.0,0.00027671,2]
[425949554,1782042659000,-566.23,0.00027671,2]
[425949553,1782042659000,-500.0,0.00027671,2]
[425949545,1782042659000,-869.68,0.00027671,2]
[425949550,1782042659000,-500.0,0.00027671,2]
[425949538,1782042659000,-1064.36,0.00027671,2]
[425949528,1782042659000,-500.0,0.00027671,2]
[425949501,1782042659000,-500.0,0.00027671,2]
[425949525,1782042659000,-784.94,0.00027671,2]
[425949500,1782042659000,-526.51911145,0.00027671,2]
[425949499,1782042659000,-6438.33,0.00027671,2]
[425949496,1782042659000,-500.0,0.00027671,2]
[425949497,1782042659000,-250.66575981,0.00027671,2]
[425949504,1782042659000,-1516.79,0.00027671,2]
[425949505,1782042659000,-718.34,0.00027671,2]
[425949503,1782042659000,-2234.42,0.00027671,2]
[425949502,1782042659000,-500.0,0.00027671,2]
[425949498,1782042659000,-598.24,0.00027671,2]
[425949552,1782042659000,-500.0,0.00027671,2]
[425949506,1782042659000,-1556.42,0.00027671,2]
[425949511,1782042659000,-500.0,0.00027671,2]
[425949524,1782042659000,-823.61,0.00027671,2]
[425949508,1782042659000,-500.0,0.00027671,2]
[425949509,1782042659000,-500.0,0.00027671,2]
[425949516,1782042659000,-500.0,0.00027671,2]
[425949512,1782042659000,-500.0,0.00027671,2]
[425949515,1782042659000,-5159.49,0.00027671,2]
[425949513,1782042659000,-716.08,0.00027671,2]
[425949514,1782042659000,-926.0,0.00027671,2]
[425949517,1782042659000,-3610.73,0.00027671,2]
[425949519,1782042659000,-1112.63,0.00027671,2]
[425949520,1782042659000,-9065.06,0.00027671,2]
[425949522,1782042659000,-7329.28,0.00027671,2]
[425949523,1782042659000,-500.0,0.00027671,2]
[425949527,1782042659000,-500.0,0.00027671,2]
[425949510,1782042659000,-839.09,0.00027671,2]
[425949551,1782042659000,-500.0,0.00027671,2]
[425949507,1782042659000,-4544.37,0.00027671,2]
[425949566,1782042659000,-4715.32,0.00027671,2]
[425949588,1782042659000,-151.0,0.00027671,7]
[425949586,1782042659000,-500.0,0.00027671,2]
[425949587,1782042659000,-500.0,0.00027671,2]
[425949591,1782042659000,-177.071436,0.00027671,7]
[425949594,1782042659000,-499.81245192,0.00027671,2]
[425949593,1782042659000,-151.0,0.00027671,7]